fUST/lending_fUST_20260416
["ID","MTS","AMOUNT","RATE_DAILY","PERIOD"]
[420563374,1776271272501,-523.88988615,0.00030167,120]
[420563375,1776271272531,-523.88988615,0.00030167,120]
[420563376,1776271272565,-490.72953741,0.00030167,120]
[420563378,1776271272602,-523.88988615,0.00030167,120]
[420563379,1776271272642,-490.72953741,0.00030167,120]
[420563381,1776271272677,-490.72953741,0.00030167,120]
[420563382,1776271272709,-523.88988615,0.00030167,120]
[420563383,1776271272743,-490.72953741,0.00030167,120]
[420563385,1776271272778,-523.88988615,0.00030167,120]
[420563386,1776271272808,-490.72953741,0.00030167,120]
[420563388,1776271272840,-523.88988615,0.00030167,120]
[420563389,1776271272869,-490.72953741,0.00030167,120]
[420563390,1776271272900,-523.88988615,0.00030167,120]
[420563392,1776271272932,-490.72953741,0.00030167,120]
[420563393,1776271272964,-490.72953741,0.00030167,120]
[420563394,1776271272994,-523.88988615,0.00030167,120]
[420563396,1776271273028,-490.72953741,0.00030167,120]
[420563397,1776271273064,-523.88988615,0.00030167,120]
[420563399,1776271273095,-490.72953741,0.00030167,120]
[420563400,1776271273125,-523.88988615,0.00030167,120]
[420563401,1776271273159,-490.72953741,0.00030167,120]
[420563403,1776271273193,-523.88988615,0.00030167,120]
[420563405,1776271273353,-490.72953741,0.00030167,120]
[420563407,1776271273389,-523.88988615,0.00030167,120]
[420563408,1776271273426,-523.88988615,0.00030167,120]
[420563410,1776271273463,-523.88988615,0.00030167,120]
[420563411,1776271273499,-523.88988615,0.00030167,120]
[420563412,1776271273540,-523.88988615,0.00030167,120]
[420563414,1776271273581,-523.88988615,0.00030167,120]
[420563415,1776271273627,-523.88988615,0.00030167,120]
[420563417,1776271273669,-523.88988615,0.00030167,120]
[420563418,1776271273698,-523.88988615,0.00030167,120]
[420563420,1776271273734,-523.88988615,0.00030167,120]
[420563421,1776271273770,-523.88988615,0.00030167,120]
[420563422,1776271273800,-523.88988615,0.00030167,120]
[420563424,1776271273835,-523.88988615,0.00030167,120]
[420563425,1776271273864,-523.88988615,0.00030167,120]
[420563427,1776271273896,-523.88988615,0.00030167,120]
[420563428,1776271273926,-523.88988615,0.00030167,120]
[420563429,1776271273953,-161.62796833,0.00030167,120]
[420563431,1776271273984,-163.57651246,0.00030167,120]
[420563432,1776271274016,-174.62996203,0.00030167,120]
[420563433,1776271274045,-161.62796833,0.00030167,120]
[420563435,1776271274079,-163.57651246,0.00030167,120]
[420563436,1776271274113,-174.62996203,0.00030167,120]
[420563438,1776271274144,-163.57651246,0.00030167,120]
[420563439,1776271274174,-174.62996202,0.00030167,120]
[420563440,1776271274202,-257.30899531,0.00030167,110]
[420563442,1776271274232,-257.30899531,0.00030167,110]
[420563443,1776271274262,-257.30899531,0.00030167,110]
[420563444,1776271274289,-163.35019372,0.00030167,110]
[420563446,1776271274318,-163.35019372,0.00030167,110]
[420563447,1776271274350,-905.83158217,0.00030167,120]
[420563448,1776271274378,-178.19514787,0.00030167,110]
[420563450,1776271274409,-279.44487625,0.00030167,120]
[420563451,1776271274442,-244.69511627,0.00030167,120]
[420563452,1776271274471,-306.80560711,0.00030167,120]
[420563454,1776271274502,-244.69511627,0.00030167,120]
[420563455,1776271274530,-306.80560711,0.00030167,120]
[420563456,1776271274560,-244.69511627,0.00030167,120]
[420563458,1776271274588,-306.80560711,0.00030167,120]
[420563459,1776271274618,-244.69511627,0.00030167,120]
[420563460,1776271274646,-306.80560711,0.00030167,120]
[420563462,1776271274674,-306.80560711,0.00030167,120]
[420563463,1776271274703,-244.69511627,0.00030167,120]
[420563464,1776271274731,-244.69511627,0.00030167,120]
[420563466,1776271274759,-306.80560711,0.00030167,120]
[420563467,1776271274788,-306.80560711,0.00030167,120]
[420563468,1776271274816,-244.69511627,0.00030167,120]
[420563470,1776271274844,-306.80560711,0.00030167,120]
[420563471,1776271274874,-244.69511627,0.00030167,120]
[420563473,1776271274901,-306.80560711,0.00030167,120]
[420563474,1776271274930,-244.69511627,0.00030167,120]
[420563475,1776271274958,-306.80560711,0.00030167,120]
[420563477,1776271274987,-244.69511627,0.00030167,120]
[420563478,1776271275016,-306.80560711,0.00030167,120]
[420563479,1776271275046,-244.69511627,0.00030167,120]
[420563480,1776271275074,-306.80560711,0.00030167,120]
[420563482,1776271275104,-244.69511627,0.00030167,120]
[420563483,1776271275132,-306.80560711,0.00030167,120]
[420563485,1776271275161,-244.69511627,0.00030167,120]
[420563486,1776271275190,-306.80560711,0.00030167,120]
[420563487,1776271275219,-244.69511627,0.00030167,120]
[420563489,1776271275247,-306.80560711,0.00030167,120]
[420563490,1776271275277,-244.69511627,0.00030167,120]
[420563491,1776271275304,-10017.56113796,0.00030167,45]
[420563493,1776271275333,-158.69255544,0.00030167,120]
[420563494,1776271275360,-271.74400607,0.00030167,110]
[420563495,1776271275389,-284.41946062,0.00030167,120]
[420563497,1776271275418,-394.71735024,0.00030167,120]
[420563498,1776271275447,-284.41946062,0.00030167,120]
[420563499,1776271275478,-394.71735024,0.00030167,120]
[420563501,1776271275505,-284.41946062,0.00030167,120]
[420563502,1776271275535,-394.71735024,0.00030167,120]
[420563503,1776271275564,-284.41946062,0.00030167,120]
[420563505,1776271275593,-394.71735024,0.00030167,120]
[420563506,1776271275631,-394.71735024,0.00030167,120]
[420563507,1776271275658,-284.41946062,0.00030167,120]
[420563509,1776271275687,-284.41946062,0.00030167,120]
[420563510,1776271275715,-394.71735024,0.00030167,120]
[420563511,1776271275742,-284.41946062,0.00030167,120]
[420563513,1776271275771,-394.71735024,0.00030167,120]
[420563514,1776271275799,-284.41946062,0.00030167,120]
[420563515,1776271275830,-394.71735024,0.00030167,120]
[420563517,1776271275861,-394.71735024,0.00030167,120]
[420563518,1776271275889,-284.41946062,0.00030167,120]
[420563520,1776271275919,-394.71735024,0.00030167,120]
[420563521,1776271275948,-394.71735024,0.00030167,120]
[420563522,1776271275977,-394.71735024,0.00030167,120]
[420563524,1776271276007,-284.41946062,0.00030167,120]
[420563525,1776271276035,-284.41946062,0.00030167,120]
[420563526,1776271276065,-394.71735024,0.00030167,120]
[420563528,1776271276093,-284.41946062,0.00030167,120]
[420563529,1776271276124,-394.71735024,0.00030167,120]
[420563530,1776271276153,-284.41946062,0.00030167,120]
[420563532,1776271276181,-284.41946062,0.00030167,120]
[420563533,1776271276209,-284.41946059,0.00030167,120]
[420563536,1776271276370,-197.35867511,0.00030167,120]
[420563537,1776271276402,-10000.0,0.00030167,120]
[420563538,1776271276429,-5579.0,0.00030167,120]
[420563540,1776271276460,-197.3586751,0.00030167,120]
[420563541,1776271276491,-153.64894742,0.00030167,120]
[420563542,1776271276518,-292.97050093,0.00030167,110]
[420563544,1776271276549,-292.97050093,0.00030167,110]
[420563545,1776271276580,-292.97050093,0.00030167,110]
[420563546,1776271276613,-292.97050093,0.00030167,110]
[420563548,1776271276651,-292.97050093,0.00030167,110]
[420563549,1776271276681,-292.97050093,0.00030167,110]
[420563551,1776271276720,-292.97050093,0.00030167,110]
[420563552,1776271276751,-292.97050089,0.00030167,110]
[420563553,1776271276779,-600.2,0.00030167,120]
[420563555,1776271276808,-31224.79,0.00030167,120]
[420563556,1776271276835,-31224.79,0.00030167,120]
[420563557,1776271276864,-31224.79,0.00030167,120]
[420563559,1776271276893,-31224.79,0.00030167,120]
[420563560,1776271276921,-31224.79,0.00030167,120]
[420563561,1776271276951,-31224.79,0.00030167,120]
[420563563,1776271276980,-31224.79,0.00030167,120]
[420563564,1776271277009,-31224.79,0.00030167,120]
[420563565,1776271277043,-31224.79,0.00030167,120]
[420563567,1776271277080,-31224.79,0.00030167,120]
[420563568,1776271277114,-31224.79,0.00030167,120]
[420563570,1776271277153,-31224.79,0.00030167,120]
[420563571,1776271277186,-31224.79,0.00030167,120]
[420563572,1776271277221,-31224.79,0.00030167,120]
[420563574,1776271277253,-31224.79,0.00030167,120]
[420563575,1776271277287,-31224.79,0.00030167,120]
[420563576,1776271277317,-31224.79,0.00030167,120]
[420563578,1776271277346,-31224.88,0.00030167,120]
[420563579,1776271277376,-367.07050649,0.00030167,120]
[420563580,1776271277405,-367.07050649,0.00030167,120]
[420563582,1776271277434,-367.07050649,0.00030167,120]
[420563583,1776271277465,-367.07050649,0.00030167,120]
[420563584,1776271277493,-367.07050649,0.00030167,120]
[420563586,1776271277524,-367.07050649,0.00030167,120]
[420563587,1776271277554,-367.07050649,0.00030167,120]
[420563588,1776271277583,-183.53525323,0.00030167,120]
[420563590,1776271277612,-183.53525322,0.00030167,120]
[420563591,1776271277639,-170.45188775,0.00030167,110]
[420563592,1776271277666,-201.19645139,0.00030167,120]
[420563594,1776271277692,-166.52627461,0.00030167,110]
[420563595,1776271277724,-219.71006827,0.00030167,120]
[420563596,1776271277755,-219.71006827,0.00030167,120]
[420563598,1776271277783,-193.08772206,0.00030167,120]
[420563599,1776271277811,-193.08772206,0.00030167,120]
[420563600,1776271277837,-9531.16881194,0.00030167,30]
[420563602,1776271277866,-218.66524445,0.00030167,120]
[420563603,1776271277897,-220.17773882,0.00030167,120]
[420563604,1776271277925,-152.47288453,0.00030167,120]
[420563606,1776271277953,-60000.0,0.00030167,30]
[420563607,1776271277981,-15000.0,0.00030167,30]
[420563608,1776271278016,-284.424592,0.00030167,40]
[420563610,1776271278045,-284.424592,0.00030167,40]
[420563611,1776271278075,-1000.0,0.00030167,30]
[420563612,1776271278106,-1000.0,0.00030167,30]
[420563614,1776271278147,-1000.0,0.00030167,30]
[420563615,1776271278175,-1000.0,0.00030167,30]
[420563616,1776271278211,-1000.0,0.00030167,30]
[420563617,1776271278240,-1758.784336,0.00030167,30]
[420563618,1776271278282,-526.2875,0.00030167,120]
[420563619,1776271278317,-501.94912977,0.00030167,120]
[420563620,1776271278347,-592.99,0.00030167,120]
[420563621,1776271278379,-592.99,0.00030167,120]
[420563622,1776271278407,-500.0,0.00030167,120]
[420563623,1776271278438,-592.99,0.00030167,120]
[420563624,1776271278477,-500.0,0.00030167,120]
[420563625,1776271278505,-592.99,0.00030167,120]
[420563626,1776271278538,-500.0,0.00030167,120]
[420563627,1776271278567,-592.99,0.00030167,120]
[420563628,1776271278597,-500.0,0.00030167,120]
[420563629,1776271278625,-592.99,0.00030167,120]
[420563630,1776271278654,-500.0,0.00030167,120]
[420563631,1776271278684,-592.99,0.00030167,120]
[420563632,1776271278711,-592.99,0.00030167,120]
[420563633,1776271278741,-592.99,0.00030167,120]
[420563634,1776271278769,-592.99,0.00030167,120]
[420563635,1776271278797,-592.99,0.00030167,120]
[420563636,1776271278825,-592.99,0.00030167,120]
[420563637,1776271278853,-832.27,0.00030167,120]
[420563638,1776271278882,-592.99,0.00030167,120]
[420563639,1776271278910,-832.27,0.00030167,120]
[420563640,1776271278939,-592.99,0.00030167,120]
[420563642,1776271278966,-832.27,0.00030167,120]
[420563643,1776271278993,-592.99,0.00030167,120]
[420563644,1776271279025,-592.99,0.00030167,120]
[420563646,1776271279053,-832.27,0.00030167,120]
[420563647,1776271279080,-832.27,0.00030167,120]
[420563648,1776271279109,-592.99,0.00030167,120]
[420563650,1776271279139,-832.27,0.00030167,120]
[420563651,1776271279167,-592.99,0.00030167,120]
[420563654,1776271279338,-832.27,0.00030167,120]
[420563655,1776271279458,-592.99,0.00030167,120]
[420563657,1776271279793,-592.99,0.00030167,120]
[420563659,1776271280218,-592.99,0.00030167,120]
[420563661,1776271280455,-592.99,0.00030167,120]
[420563663,1776271280698,-592.99,0.00030167,120]
[420563665,1776271280889,-593.17433184,0.00030167,120]
[420563669,1776271281345,99619.18667434,0.00030167,30]
[420563671,1776271281405,23690.80882026,0.00030167,30]
[420563672,1776271281474,2516.18938041,0.00030167,30]
[420563694,1776271285772,832.27,0.00030167,120]
[420563696,1776271285858,832.27,0.00030167,120]
[420563697,1776271285921,832.27,0.00030167,120]
[420563699,1776271285969,832.27,0.00030167,120]
[420563700,1776271286036,832.27,0.00030167,120]
[420563702,1776271286124,832.27,0.00030167,120]
[420563704,1776271286289,832.27,0.00030167,120]
[420563706,1776271286355,832.27,0.00030167,120]
[420564530,1776271377451,-151.0,7.878e-05,21]
[420564554,1776271379829,-151.0,7.878e-05,21]
[420564561,1776271380666,-151.0,7.878e-05,21]
[420564570,1776271381357,-151.0,7.878e-05,21]
[420564577,1776271382182,-151.0,7.878e-05,21]
[420564586,1776271383099,-151.0,7.878e-05,21]
[420564595,1776271383946,-151.0,7.878e-05,21]
[420564602,1776271384656,-151.0,7.878e-05,21]
[420564612,1776271385457,-151.0,7.878e-05,21]
[420564621,1776271386191,-151.0,7.878e-05,21]
[420566676,1776271617648,-151.0,7.069e-05,20]
[420566695,1776271619297,-149.0,7.069e-05,20]
[420568065,1776271791124,300.0,6.997e-05,19]
[420568306,1776271823552,524.1308479,6.71e-05,30]
[420568312,1776271824697,524.1308479,6.778e-05,30]
[420568323,1776271825865,524.1308479,7.187e-05,30]
[420568333,1776271826970,524.1308479,7.305e-05,30]
[420568372,1776271832551,-441.70512035,6.71e-05,2]
[420568430,1776271838703,-4558.29487965,6.71e-05,2]
[420568431,1776271838713,-643.7704425,6.778e-05,2]
[420568432,1776271838723,-160.76100051,7.187e-05,2]
[420568433,1776271838732,-921.4973299,7.305e-05,2]
[420568434,1776271838742,-300.0,7.876e-05,2]
[420568435,1776271838753,-201.59919129,7.877e-05,2]
[420568436,1776271838764,-500.0,7.877e-05,2]
[420568437,1776271838773,-386.67220459,7.877e-05,2]
[420568438,1776271838782,-500.0,7.877e-05,2]
[420568439,1776271838793,-500.0,7.877e-05,2]
[420568441,1776271838804,-500.0,7.877e-05,2]
[420568442,1776271838813,-280.61573952,7.877e-05,2]
[420568443,1776271838825,-500.0,7.877e-05,2]
[420568444,1776271838834,-607.87351304,7.877e-05,2]
[420568445,1776271838845,-231.0569182,7.877e-05,2]
[420568453,1776271840526,749.40055466,6.778e-05,30]
[420568466,1776271841572,749.40055466,7.187e-05,30]
[420568480,1776271842836,749.40055466,7.305e-05,30]
[420568502,1776271843998,749.40055466,8.428e-05,30]
[420568530,1776271847104,-306.67,6.71e-05,2]
[420569957,1776272036332,1739.0,7e-05,10]
[420570645,1776272128889,209.65233915,6.677e-05,30]
[420570654,1776272130008,314.47850873,7.247e-05,30]
[420572873,1776272463187,-1915.36657013,6.446e-05,2]
[420576426,1776273039150,-5000.0,4.851e-05,2]
[420576428,1776273039161,-261.05986555,4.938e-05,2]
[420576429,1776273039177,-648.2291472,5e-05,2]
[420576430,1776273039190,-300.0,5.894e-05,2]
[420576431,1776273039201,-975.0,6.179e-05,2]
[420576432,1776273039212,-300.0,6.18e-05,2]
[420576433,1776273039227,-4113.0584841,6.181e-05,2]
[420576434,1776273039238,-300.0,6.303e-05,2]
[420576435,1776273039247,-300.0,6.303e-05,2]
[420576436,1776273039257,-300.0,6.303e-05,2]
[420576437,1776273039266,-300.0,6.303e-05,2]
[420576438,1776273039278,-300.0,6.303e-05,2]
[420576439,1776273039287,-300.0,6.303e-05,2]
[420576440,1776273039297,-300.0,6.303e-05,2]
[420576442,1776273039307,-300.0,6.303e-05,2]
[420576443,1776273039319,-300.0,6.303e-05,2]
[420576444,1776273039329,-300.0,6.303e-05,2]
[420576445,1776273039338,-300.0,6.303e-05,2]
[420576446,1776273039348,-300.0,6.303e-05,2]
[420576447,1776273039357,-300.0,6.303e-05,2]
[420576448,1776273039370,-300.0,6.303e-05,2]
[420576449,1776273039381,-300.0,6.303e-05,2]
[420576450,1776273039392,-626.82472562,6.303e-05,2]
[420576451,1776273039401,-600.0,6.428e-05,2]
[420576452,1776273039413,-500.0,6.511e-05,2]
[420576453,1776273039425,-500.0,6.511e-05,2]
[420576454,1776273039435,-500.0,6.511e-05,2]
[420576456,1776273039445,-262.337877,6.687e-05,2]
[420576457,1776273039456,-442.73055466,6.71e-05,2]
[420576458,1776273039466,-420.0,6.797e-05,2]
[420576459,1776273039476,-308.05064135,6.938e-05,2]
[420576460,1776273039485,-262.337877,6.968e-05,2]
[420576461,1776273039498,-720.0,7.071e-05,2]
[420576462,1776273039508,-151.0,7.247e-05,2]
[420576463,1776273039519,-262.337877,7.25e-05,2]
[420576464,1776273039537,-587.0,7.477e-05,2]
[420576465,1776273039549,-762.51792367,7.5e-05,2]
[420576466,1776273039563,-1686.67084062,7.5e-05,2]
[420576468,1776273039579,-262.337877,7.531e-05,2]
[420576469,1776273039589,-500.0,7.673e-05,2]
[420576470,1776273039608,-500.0,7.673e-05,2]
[420576471,1776273039637,-507.95438715,7.673e-05,2]
[420576472,1776273039665,-517.19822348,7.673e-05,2]
[420576473,1776273039682,-500.0,7.673e-05,2]
[420576474,1776273039711,-500.0,7.673e-05,2]
[420576476,1776273039731,-500.0,7.673e-05,2]
[420576477,1776273039766,-500.0,7.673e-05,2]
[420576478,1776273039782,-1345231.5918692,7.699e-05,2]
[420576479,1776273039819,-864.0,7.778e-05,2]
[420576480,1776273039860,-57066.64136619,7.799e-05,2]
[420576482,1776273039893,-262.337877,7.813e-05,2]
[420576483,1776273039939,-500.0,7.877e-05,2]
[420576484,1776273039972,-23348.0,7.878e-05,21]
[420576485,1776273039999,-4059.15438478,7.898e-05,2]
[420576486,1776273040021,-340.39434658,7.932e-05,2]
[420576487,1776273040046,-479.11,7.973e-05,2]
[420576488,1776273040071,-500.0,7.973e-05,2]
[420576490,1776273040090,-500.0,7.998e-05,2]
[420576491,1776273040111,-444.0,8.038e-05,2]
[420576492,1776273040122,-262.337877,8.094e-05,2]
[420576493,1776273040144,-463.9872392,8.1e-05,2]
[420576494,1776273040157,-1057.95001066,8.1e-05,2]
[420576495,1776273040178,-1098.68190179,8.1e-05,2]
[420576496,1776273040189,-956.69817669,8.1e-05,2]
[420576497,1776273040202,-257.10670968,8.1e-05,2]
[420576498,1776273040221,-1361.5773863,8.135e-05,2]
[420576499,1776273040233,-151.5,8.219e-05,2]
[420576500,1776273040247,-192.40120149,8.219e-05,2]
[420576502,1776273040261,-299.01933871,8.219e-05,2]
[420576503,1776273040295,-151.5,8.219e-05,2]
[420576504,1776273040308,-500.0,8.219e-05,2]
[420576505,1776273040332,-252.902772,8.219e-05,2]
[420576506,1776273040349,-500.0,8.219e-05,2]
[420576507,1776273040362,-500.0,8.219e-05,2]
[420576508,1776273040382,-500.0,8.219e-05,2]
[420576509,1776273040397,-615.1166415,8.219e-05,2]
[420576511,1776273040414,-500.0,8.219e-05,2]
[420576512,1776273040429,-500.0,8.219e-05,2]
[420576513,1776273040444,-500.0,8.219e-05,2]
[420576514,1776273040465,-500.0,8.219e-05,2]
[420576516,1776273040475,-500.0,8.219e-05,2]
[420576517,1776273040488,-500.0,8.219e-05,2]
[420576518,1776273040501,-500.0,8.219e-05,2]
[420576519,1776273040516,-564.8859341,8.219e-05,2]
[420576520,1776273040526,-500.0,8.219e-05,2]
[420576521,1776273040538,-500.0,8.219e-05,2]
[420576522,1776273040549,-500.0,8.219e-05,2]
[420576524,1776273040561,-500.0,8.219e-05,2]
[420576525,1776273040570,-500.0,8.219e-05,2]
[420576526,1776273040582,-500.0,8.219e-05,2]
[420576527,1776273040596,-500.0,8.219e-05,2]
[420576528,1776273040606,-151.5,8.219e-05,2]
[420576529,1776273040615,-500.0,8.219e-05,2]
[420576530,1776273040625,-256.45160403,8.219e-05,2]
[420576531,1776273040635,-500.0,8.219e-05,2]
[420576532,1776273040647,-248.60296465,8.219e-05,2]
[420576533,1776273040657,-500.0,8.219e-05,2]
[420576534,1776273040666,-185.84496892,8.219e-05,2]
[420576535,1776273040676,-500.0,8.219e-05,2]
[420576536,1776273040689,-500.0,8.219e-05,2]
[420576538,1776273040699,-500.0,8.219e-05,2]
[420576539,1776273040709,-151.5,8.219e-05,2]
[420576540,1776273040719,-500.0,8.219e-05,2]
[420576541,1776273040732,-151.5,8.219e-05,2]
[420576542,1776273040742,-151.5,8.219e-05,2]
[420576543,1776273040751,-500.0,8.219e-05,2]
[420576544,1776273040760,-253.45760946,8.219e-05,2]
[420576545,1776273040777,-246.79528666,8.219e-05,2]
[420576546,1776273040787,-500.0,8.219e-05,2]
[420576547,1776273040797,-500.0,8.219e-05,2]
[420576548,1776273040808,-500.0,8.219e-05,2]
[420576549,1776273040819,-500.0,8.219e-05,2]
[420576551,1776273040829,-500.0,8.219e-05,2]
[420576552,1776273040838,-500.0,8.219e-05,2]
[420576553,1776273040849,-500.0,8.219e-05,2]
[420576554,1776273040861,-500.0,8.219e-05,2]
[420576555,1776273040870,-175.28835318,8.219e-05,2]
[420576556,1776273040881,-500.0,8.219e-05,2]
[420576557,1776273040894,-378.1299983,8.219e-05,2]
[420576558,1776273040905,-500.0,8.219e-05,2]
[420576559,1776273040914,-500.0,8.219e-05,2]
[420576560,1776273040926,-500.0,8.219e-05,2]
[420576561,1776273040938,-500.0,8.219e-05,2]
[420576562,1776273040948,-500.0,8.219e-05,2]
[420576563,1776273040958,-500.0,8.219e-05,2]
[420576564,1776273040970,-519.59801042,8.219e-05,2]
[420576566,1776273040982,-500.0,8.219e-05,2]
[420576567,1776273040993,-325.76162427,8.219e-05,2]
[420576568,1776273041002,-1000.0,8.221e-05,2]
[420576569,1776273041016,-1000.0,8.221e-05,2]
[420576570,1776273041026,-843.07917154,8.221e-05,2]
[420576709,1776273061716,-156.92082846,8.221e-05,2]
[420576710,1776273061736,-1000.0,8.221e-05,2]
[420576711,1776273061751,-1000.0,8.221e-05,2]
[420576712,1776273061768,-455.01112384,8.225e-05,2]
[420576716,1776273062091,-367.98887616,8.225e-05,2]
[420576717,1776273062105,-3063.54911918,8.337e-05,2]
[420576718,1776273062117,-727.64704836,8.376e-05,2]
[420576719,1776273062131,-166.75801089,8.4e-05,2]
[420576720,1776273062149,-240.94971873,8.476e-05,2]
[420576721,1776273062162,-1152.00395271,8.476e-05,2]
[420576722,1776273062179,-5440.86323567,8.539e-05,2]
[420576723,1776273062204,-1000.0,8.556e-05,2]
[420576724,1776273062220,-4059.15438477,8.578e-05,2]
[420576726,1776273062243,-2405.25317063,8.676e-05,2]
[420576727,1776273062273,-537.6845,8.704e-05,2]
[420576728,1776273062306,-1957.856,8.704e-05,2]
[420576729,1776273062339,-569.98638677,8.704e-05,2]
[420576730,1776273062371,-2150.738,8.704e-05,2]
[420576732,1776273062392,-557.5788265,8.759e-05,2]
[420576733,1776273062434,-1485.40188291,8.759e-05,2]
[420576734,1776273062479,-1500.0,8.768e-05,2]
[420576735,1776273062508,-1500.0,8.768e-05,2]
[420576736,1776273062526,-1500.0,8.768e-05,2]
[420576737,1776273062551,-1500.0,8.768e-05,2]
[420576739,1776273062564,-1500.0,8.768e-05,2]
[420576740,1776273062609,-686.07228701,8.803e-05,2]
[420576741,1776273062623,-578.20924308,8.814e-05,2]
[420576742,1776273062641,-599.60298507,8.869e-05,2]
[420576743,1776273062654,-621.78829552,8.924e-05,2]
[420576744,1776273062669,-355.04141715,8.938e-05,2]
[420576745,1776273062688,-644.79446246,8.979e-05,2]
[420576747,1776273062698,-11591.47033826,9e-05,2]
[420578018,1776273258157,-272.41987281,0.00010137,120]
[420578019,1776273258257,-655.51536582,0.0002,120]
[420578021,1776273258325,-218.0,0.00026,120]
[420578022,1776273258358,-208.0,0.00026,120]
[420578023,1776273258389,-587.0,0.0002641,120]
[420578025,1776273258420,-587.0,0.0002641,120]
[420578026,1776273258453,-587.0,0.0002641,120]
[420578027,1776273258483,-587.0,0.0002641,120]
[420578028,1776273258511,-587.0,0.0002641,120]
[420578030,1776273258543,-218.0,0.000266,120]
[420578031,1776273258570,-1596.83372,0.00027,120]
[420578032,1776273258597,-85762.5787337,0.00027,120]
[420578033,1776273258626,-254.80627291,0.00027,120]
[420578034,1776273258657,-97456.64773587,0.00027,120]
[420578036,1776273258685,-354.43617,0.00027,120]
[420578037,1776273258716,-218.0,0.000272,120]
[420578038,1776273258745,-627.46770836,0.000273,120]
[420578039,1776273258778,-2119.22442873,0.00027397,120]
[420578041,1776273258806,-334.93316035,0.00027397,120]
[420578177,1776273281354,2388.0,0.0002641,120]
[420578187,1776273282522,2388.0,0.0002641,120]
[420578190,1776273282840,2388.0,0.0002641,120]
[420578193,1776273283202,2388.0,0.0002641,120]
[420578196,1776273283466,2388.0,0.0002641,120]
[420578200,1776273283773,2388.0,0.0002641,120]
[420578203,1776273284099,2388.0,0.0002641,120]
[420578208,1776273284575,2388.0,0.0002641,120]
[420578210,1776273284662,2388.0,0.0002641,120]
[420578213,1776273284939,814.361,0.0002641,120]
[420578219,1776273285580,495.0,0.0002641,120]
[420578222,1776273285849,495.0,0.0002641,120]
[420578225,1776273286137,495.0,0.0002641,120]
[420578228,1776273286407,495.0,0.0002641,120]
[420578232,1776273286883,495.0,0.0002641,120]
[420578235,1776273287113,463.568,0.0002641,120]
[420578267,1776273292332,3046.25328006,0.00027297,120]
[420578348,1776273303734,966.75,0.0002739,120]
[420578735,1776273361603,2000.0,0.00027397,120]
[420579105,1776273423125,600.0,0.00027397,120]
[420579216,1776273443225,5000.0,7e-05,10]
[420579346,1776273465961,4294.59062284,7e-05,10]
[420580677,1776273708357,151.0,0.00027397,120]
[420580708,1776273713904,23582.0,0.00027397,120]
[420580709,1776273713949,2516.18938041,0.00027397,120]
[420580711,1776273714102,2427.0,0.00027397,120]
[420580717,1776273714958,769.0,0.00027397,120]
[420580810,1776273731203,151.0,0.00027397,120]
[420580847,1776273738680,1642.59,0.00025475,120]
[420580860,1776273741068,1642.5,0.00025687,120]
[420580863,1776273741572,1642.5,0.00025899,120]
[420580867,1776273742147,150.0199,0.00027397,120]
[420580873,1776273742965,1642.5,0.0002611,120]
[420580880,1776273744301,1642.5,0.00026322,120]
[420580887,1776273745625,1642.5,0.00026534,120]
[420580897,1776273747009,1642.5,0.00026745,120]
[420580906,1776273748746,1642.5,0.00026957,120]
[420580913,1776273749988,1642.5,0.00027169,120]
[420580923,1776273751476,1642.5,0.0002738,120]
[420580951,1776273757188,151.0,0.00027397,120]
[420581389,1776273840858,821.25,0.00025475,120]
[420581402,1776273842786,821.25,0.00025687,120]
[420581410,1776273844107,821.25,0.00025899,120]
[420581419,1776273845446,821.25,0.0002611,120]
[420581426,1776273846982,821.25,0.00026322,120]
[420581428,1776273847123,839.0,0.00027397,120]
[420581436,1776273848851,821.25,0.00026534,120]
[420581445,1776273851153,821.25,0.00026745,120]